bitfinex-derivatives/quotes_BTCF0:USTF0_20250718
["timestamp","ask_amount","ask_price","bid_price","bid_amount"]
[1752868591160,1.59814045,117610.0,117600.0,1.34862539]
[1752868591355,1.53707562,117610.0,117600.0,1.34862539]
[1752868591659,1.53707562,117610.0,117600.0,0.91062]
[1752868591859,1.53707562,117610.0,117600.0,1.34862539]
[1752868592561,1.55434099,117610.0,117600.0,1.34862539]
[1752868593357,1.63067203,117610.0,117600.0,1.34862539]
[1752868594055,1.63067203,117610.0,117600.0,1.03169]
[1752868594262,1.63067203,117610.0,117600.0,1.46969539]
[1752868594458,1.63067203,117610.0,117600.0,1.03169]
[1752868594658,1.63067203,117610.0,117600.0,1.46969539]
[1752868595962,1.55434099,117610.0,117600.0,1.46969539]
[1752868596265,1.63067203,117610.0,117600.0,1.46969539]
[1752868597163,1.55434099,117610.0,117600.0,1.46969539]
[1752868604269,0.93806099,117610.0,117600.0,1.46969539]
[1752868604469,1.55402099,117610.0,117600.0,1.46969539]
[1752868605267,1.99190638,117610.0,117600.0,0.91062]
[1752868605468,1.45239742,117610.0,117600.0,0.91062]
[1752868605770,1.55390099,117610.0,117600.0,0.91062]
[1752868608767,1.99190638,117610.0,117600.0,0.52503]
[1752868609072,2.67903742,117610.0,117590.0,0.53072]
[1752868609268,1.99103203,117610.0,117590.0,0.43800539]
[1752868609468,1.91470099,117610.0,117590.0,0.43800539]
[1752868609771,2.14743562,117610.0,117590.0,0.43800539]
[1752868610172,1.89743562,117610.0,117590.0,0.43800539]
[1752868610471,2.00429908,117610.0,117590.0,0.43800539]
[1752868611073,2.00229908,117610.0,117590.0,0.43800539]
[1752868611371,2.00429908,117610.0,117590.0,0.43800539]
[1752868612871,1.89743562,117610.0,117590.0,0.43800539]
[1752868613874,1.89743562,117610.0,117600.0,0.43800539]
[1752868614376,2.14743562,117610.0,117600.0,0.43800539]
[1752868615375,2.14743562,117610.0,117590.0,0.60792539]
[1752868615577,1.89743562,117610.0,117600.0,0.43800539]
[1752868616076,2.14743562,117610.0,117600.0,0.43800539]
[1752868617176,2.14543562,117610.0,117600.0,0.43800539]
[1752868617378,2.14743562,117610.0,117600.0,0.43800539]
[1752868617972,2.14543562,117610.0,117600.0,0.43800539]
[1752868618175,1.89743562,117610.0,117600.0,0.43800539]
[1752868620574,2.03823562,117610.0,117600.0,0.43800539]
[1752868620775,1.89743562,117610.0,117600.0,0.43800539]
[1752868620975,2.00430854,117610.0,117600.0,0.43800539]
[1752868621378,1.89743562,117610.0,117600.0,0.43800539]
[1752868622885,1.89743562,117610.0,117600.0,0.59957539]
[1752868623286,1.89743562,117610.0,117600.0,0.62318539]
[1752868623486,1.53603562,117610.0,117600.0,0.73297539]
[1752868623781,1.86716548,117610.0,117600.0,0.43800539]
[1752868623981,2.33481032,117610.0,117590.0,0.59957539]
[1752868624185,2.33481032,117610.0,117600.0,0.43800539]
[1752868624786,2.33481032,117610.0,117590.0,0.62318539]
[1752868625086,2.33481032,117610.0,117600.0,0.43800539]
[1752868625887,2.22796548,117610.0,117600.0,0.43800539]
[1752868626187,2.3348146,117610.0,117600.0,0.43800539]
[1752868626787,2.3348146,117610.0,117590.0,0.62318539]
[1752868627089,1.86516548,117610.0,117590.0,0.98398539]
[1752868627286,1.86716548,117610.0,117590.0,0.98398539]
[1752868627485,1.86716548,117610.0,117600.0,0.43800539]
[1752868627785,1.86716548,117610.0,117590.0,0.98398539]
[1752868628180,2.30517087,117610.0,117590.0,0.98398539]
[1752868628778,1.86716548,117610.0,117590.0,0.98398539]
[1752868631691,2.30517087,117610.0,117590.0,0.98398539]
[1752868632390,1.86716548,117610.0,117590.0,0.98398539]
[1752868633382,2.30517087,117610.0,117590.0,0.98398539]
[1752868633683,1.86716548,117610.0,117600.0,0.16157]
[1752868643101,1.97412011,117610.0,117600.0,0.16157]
[1752868643301,1.97412011,117610.0,117600.0,0.18518]
[1752868644002,1.86716548,117610.0,117600.0,0.18518]
[1752868644406,1.86716548,117610.0,117600.0,0.16157]
[1752868646199,1.86716548,117610.0,117590.0,0.82241539]
[1752868646399,1.36010857,117610.0,117590.0,1.83428539]
[1752868646602,1.36010857,117610.0,117590.0,0.98398539]
[1752868646801,1.36010857,117610.0,117600.0,0.16157]
[1752868647506,1.97430857,117610.0,117600.0,0.16157]
[1752868648308,1.97430857,117610.0,117600.0,0.18518]
[1752868649112,1.86712548,117610.0,117600.0,0.18518]
[1752868649507,2.01978757,117610.0,117600.0,0.18518]
[1752868656105,1.40458757,117610.0,117600.0,1.10236539]
[1752868656303,1.40458757,117610.0,117600.0,2.56654539]
[1752868656504,1.40458757,117610.0,117600.0,3.85487078]
[1752868656709,1.25192548,117610.0,117600.0,3.85487078]
[1752868657409,1.25192548,117610.0,117600.0,3.41670539]
[1752868658310,1.25192548,117610.0,117600.0,2.80298539]
[1752868658511,1.79703057,117610.0,117600.0,1.15966]
[1752868658707,1.79703057,117610.0,117600.0,2.00992]
[1752868658913,1.68993087,117610.0,117600.0,2.00992]
[1752868659412,1.68993087,117610.0,117600.0,1.03548]
[1752868659609,1.68993087,117610.0,117600.0,1.64908]
[1752868659809,1.68993087,117610.0,117600.0,1.03548]
[1752868660012,1.68993087,117610.0,117600.0,1.64908]
[1752868660314,1.68993087,117610.0,117600.0,1.03548]
[1752868660513,1.68993087,117610.0,117600.0,1.64904]
[1752868660714,1.84259296,117610.0,117600.0,1.64904]
[1752868661614,1.25192548,117610.0,117600.0,1.64904]
[1752868661807,1.25192548,117610.0,117600.0,1.64896]
[1752868662315,1.40458757,117610.0,117600.0,1.64896]
[1752868662610,1.40458757,117610.0,117600.0,1.76734]
[1752868663316,1.40458757,117610.0,117600.0,1.15386]
[1752868663517,1.40458757,117610.0,117600.0,1.76734]
[1752868663813,1.40458757,117610.0,117600.0,1.15386]
[1752868664116,1.40458757,117610.0,117600.0,1.76722]
[1752868664117,1.25192548,117610.0,117600.0,1.76722]
[1752868666018,1.68993087,117610.0,117600.0,1.76722]
[1752868668722,1.68993087,117610.0,117600.0,1.15386]
[1752868668922,1.68993087,117610.0,117600.0,1.76706]
[1752868669421,1.68993087,117610.0,117600.0,1.76694]
[1752868671422,1.68993087,117610.0,117600.0,1.76686]
[1752868672221,1.68993087,117610.0,117600.0,1.76682]
[1752868672923,1.84259296,117610.0,117600.0,1.76682]
[1752868673126,1.84259296,117610.0,117600.0,1.15386]
[1752868673422,1.84259296,117610.0,117600.0,1.7667]
[1752868675326,1.68993087,117610.0,117600.0,1.7667]
[1752868676228,1.68993087,117610.0,117600.0,1.15386]
[1752868676422,1.68993087,117610.0,117600.0,1.76658]
[1752868676928,1.68993087,117610.0,117600.0,1.15386]
[1752868677127,1.68993087,117610.0,117600.0,1.76654]
[1752868678726,1.68993087,117610.0,117600.0,1.76638]
[1752868680927,1.58015933,117610.0,117600.0,2.09461385]
[1752868681426,1.58015933,117610.0,117600.0,2.09453385]
[1752868681626,1.58015933,117610.0,117600.0,1.48209385]
[1752868681826,1.58015933,117610.0,117600.0,2.09445385]
[1752868683029,1.58015933,117610.0,117600.0,1.48209385]
[1752868683230,1.58015933,117610.0,117600.0,2.09445385]
[1752868683729,1.58015933,117610.0,117600.0,2.09437385]
[1752868684131,1.58015933,117610.0,117600.0,1.76614]
[1752868684325,1.90839318,117610.0,117600.0,0.30356]
[1752868684532,2.37631982,117610.0,117590.0,0.16171]
[1752868684830,2.22492548,117610.0,117600.0,0.6564677]
[1752868685030,2.37758757,117610.0,117600.0,0.6564677]
[1752868685428,2.37758757,117610.0,117600.0,0.32823385]
[1752868685429,2.48471005,117610.0,117600.0,0.32823385]
[1752868685730,2.95582142,117610.0,117600.0,0.32823385]
[1752868685930,2.80315933,117610.0,117600.0,0.32823385]
[1752868686323,2.94435933,117610.0,117590.0,0.37669385]
[1752868686533,2.36612548,117610.0,117590.0,0.68903385]
[1752868686722,2.36612548,117610.0,117600.0,0.6564677]
[1752868687030,2.36612548,117610.0,117600.0,0.43773973]
[1752868687229,2.61612548,117610.0,117600.0,0.43773973]
[1752868687528,3.16473973,117610.0,117570.0,0.43364]
[1752868687735,2.19313973,117610.0,117590.0,0.3608]
[1752868687928,2.19313973,117610.0,117590.0,0.79853973]
[1752868688130,2.74360045,117610.0,117590.0,0.79853973]
[1752868688337,2.64360045,117610.0,117590.0,0.79853973]
[1752868688629,2.74360045,117610.0,117590.0,0.79853973]
[1752868688930,2.73960045,117610.0,117590.0,0.3608]
[1752868689130,2.64360045,117610.0,117590.0,0.3608]
[1752868689332,2.44513973,117610.0,117590.0,0.3608]
[1752868689532,2.44713973,117610.0,117590.0,0.3608]
[1752868690530,2.4702,117610.0,117590.0,0.3608]
[1752868690737,2.90187791,117610.0,117590.0,0.79853973]
[1752868690937,2.46413818,117610.0,117590.0,0.79853973]
[1752868691138,3.02889818,117610.0,117600.0,0.43773973]
[1752868691336,3.12889818,117610.0,117600.0,0.34847124]
[1752868691537,3.74081818,117610.0,117600.0,0.30591101]
[1752868691732,3.74081818,117610.0,117590.0,0.3608]
[1752868691733,0.1,117600.0,117590.0,0.3414307]
[1752868691935,1.07192,117600.0,117590.0,1.33605993]
[1752868692234,0.96,117600.0,117590.0,1.06156946]
[1752868692433,1.57188,117600.0,117590.0,1.42236946]
[1752868692634,0.30554,117590.0,117560.0,0.72706048]
[1752868692844,0.67322,117580.0,117570.0,0.97128]
[1752868693043,0.67322,117580.0,117570.0,2.87121973]
[1752868693044,1.61322,117580.0,117570.0,2.87121973]
[1752868693245,1.11322,117580.0,117570.0,2.87121973]
[1752868693444,1.61322,117580.0,117570.0,2.87121973]
[1752868693645,1.72011467,117580.0,117570.0,2.87121973]
[1752868693944,2.08091467,117580.0,117570.0,2.84275974]
[1752868694251,2.08291467,117580.0,117570.0,2.81393974]
[1752868694639,2.08491467,117580.0,117570.0,3.00002974]
[1752868695551,1.97802,117580.0,117570.0,3.00002974]
[1752868696450,2.08484474,117580.0,117570.0,3.00002974]
[1752868699354,2.08484474,117580.0,117570.0,2.9860629]
[1752868699852,1.97802,117580.0,117570.0,2.96669555]
[1752868700243,1.97802,117580.0,117570.0,2.32567556]
[1752868700445,1.97802,117580.0,117570.0,2.93719556]
[1752868700854,2.13072668,117580.0,117570.0,2.93719556]
[1752868701953,2.23751645,117580.0,117570.0,2.93719556]
[1752868702349,2.08480977,117580.0,117570.0,2.93719556]
[1752868702750,2.08480977,117580.0,117570.0,2.93711556]
[1752868703654,2.08480977,117580.0,117570.0,1.53670974]
[1752868703856,0.31242,117570.0,117560.0,0.41645298]
[1752868704059,0.92575,117570.0,117560.0,0.61136]
[1752868704351,1.53711,117570.0,117560.0,0.41673973]
[1752868704552,2.03711,117570.0,117560.0,0.41673973]
[1752868704754,2.20458,117570.0,117560.0,0.41673973]
[1752868704954,0.31242,117560.0,117550.0,0.1109604]
[1752868705151,1.18322,117560.0,117550.0,2.72858395]
[1752868705555,1.68322,117560.0,117550.0,2.72858395]
[1752868705756,1.68322,117560.0,117550.0,2.84183395]
[1752868705954,1.68322,117560.0,117550.0,2.89029395]
[1752868706154,1.68322,117560.0,117550.0,2.27897395]
[1752868706360,1.68322,117560.0,117550.0,2.61364136]
[1752868706763,1.68322,117560.0,117550.0,2.61360136]
[1752868706965,1.68322,117560.0,117550.0,2.52847102]
[1752868707158,1.68322,117560.0,117550.0,1.89937973]
[1752868707363,1.68322,117560.0,117550.0,1.91719102]
[1752868707663,1.68322,117560.0,117550.0,2.52843102]
[1752868707857,1.68322,117560.0,117550.0,2.50906119]
[1752868708762,1.68322,117560.0,117550.0,1.86649119]
[1752868708965,1.79003162,117560.0,117550.0,2.47773119]
[1752868709963,1.79003162,117560.0,117550.0,2.58001119]
[1752868710360,1.68322,117560.0,117550.0,2.58001119]
[1752868710962,1.68322,117560.0,117550.0,2.44895119]
[1752868712363,1.68322,117560.0,117550.0,2.36380816]
[1752868713165,1.68322,117560.0,117550.0,1.92606843]
[1752868713366,1.68322,117560.0,117550.0,2.36380816]
[1752868713858,1.79003162,117560.0,117550.0,1.75264816]
[1752868714068,1.56750213,117560.0,117540.0,0.62909129]
[1752868714261,1.36309213,117550.0,117540.0,1.06683102]
[1752868714464,1.84309213,117550.0,117540.0,1.06683102]
[1752868714665,1.76674,117550.0,117540.0,1.06683102]
[1752868714967,1.76674,117550.0,117540.0,1.01845118]
[1752868714968,2.34310175,117550.0,117540.0,1.01845118]
[1752868715164,2.07627,117550.0,117500.0,0.3608]
[1752868715364,0.75218291,117530.0,117520.0,0.53627734]
[1752868715568,1.21218291,117530.0,117520.0,1.07180203]
[1752868715764,1.21218291,117530.0,117520.0,2.13211305]
[1752868715765,1.13582,117530.0,117520.0,2.13211305]
[1752868716063,1.74272807,117530.0,117520.0,2.14467961]
[1752868717158,1.74372807,117530.0,117520.0,2.14467961]
[1752868717563,1.74372807,117530.0,117520.0,2.11273961]
[1752868717763,2.10452807,117530.0,117520.0,2.11273961]
[1752868717966,2.10452807,117530.0,117520.0,2.10361293]
[1752868718173,2.57855973,117530.0,117490.0,0.00095]
[1752868718367,0.67582,117500.0,117490.0,0.09445446]
[1752868718566,1.17211671,117500.0,117490.0,1.14299419]
[1752868718765,1.20264431,117500.0,117490.0,1.73454425]
[1752868718967,1.70264431,117500.0,117490.0,1.73454425]
[1752868719564,1.70264431,117500.0,117490.0,1.73754425]
[1752868719966,1.70264431,117500.0,117490.0,1.30180452]
[1752868720165,1.70264431,117500.0,117490.0,1.73954425]
[1752868720364,1.77884444,117500.0,117490.0,1.73954425]
[1752868720670,1.16398013,117500.0,117490.0,1.12674425]
[1752868720867,1.16398013,117500.0,117490.0,1.73854425]
[1752868720868,1.18667013,117500.0,117490.0,1.73854425]
[1752868721064,1.18667013,117500.0,117490.0,1.73754425]
[1752868721269,1.04559013,117500.0,117490.0,2.09834425]
[1752868721467,1.16398013,117500.0,117490.0,2.09834425]
[1752868721667,1.14870258,117500.0,117490.0,2.09834425]
[1752868721973,1.17139258,117500.0,117490.0,1.73754425]
[1752868722167,1.17139258,117500.0,117490.0,2.08436999]
[1752868722773,1.17139258,117500.0,117490.0,1.72352999]
[1752868723071,1.17139258,117500.0,117490.0,2.08432999]
[1752868723472,1.17139258,117500.0,117490.0,1.47356999]
[1752868723773,1.14870258,117500.0,117490.0,2.08428999]
[1752868724171,1.14870258,117500.0,117490.0,1.64655026]
[1752868724374,1.08778,117500.0,117490.0,2.08428999]
[1752868724675,1.14870258,117500.0,117490.0,1.72348999]
[1752868724870,1.14870258,117500.0,117490.0,2.08428999]
[1752868725276,1.14870258,117500.0,117490.0,1.72348999]
[1752868725477,1.11047,117500.0,117490.0,2.08428999]
[1752868725973,1.11047,117500.0,117490.0,1.64655026]
[1752868726172,1.17139258,117500.0,117490.0,1.72348999]
[1752868726574,1.53219258,117500.0,117490.0,1.11276999]
[1752868726976,1.47127,117500.0,117490.0,1.28563026]
[1752868727170,1.47127,117500.0,117490.0,0.6940802]
[1752868727370,1.47127,117500.0,117490.0,1.25991819]
[1752868727670,1.54747013,117500.0,117490.0,1.17470353]
[1752868728173,2.15803013,117500.0,117490.0,0.56414353]
[1752868729973,0.04939,117460.0,117450.0,0.3608]
[1752868730273,0.67047,117460.0,117450.0,1.40905973]
[1752868730475,0.67047,117460.0,117450.0,1.97320326]
[1752868730775,1.17047,117460.0,117450.0,1.97320326]
[1752868731173,1.20863446,117460.0,117450.0,1.97320326]
[1752868731372,1.14778,117460.0,117450.0,1.97320326]
[1752868731977,1.17047,117460.0,117450.0,1.97620326]
[1752868732274,1.15611605,117460.0,117450.0,1.97612326]
[1752868732474,0.02,117460.0,117450.0,1.65955946]
[1752868732678,0.89,117460.0,117450.0,1.83429973]
[1752868732973,0.39,117460.0,117450.0,1.83329973]
[1752868733577,0.89,117460.0,117450.0,1.83329973]
[1752868733877,0.39,117460.0,117450.0,1.83329973]
[1752868734481,0.89,117460.0,117450.0,1.83329973]
[1752868734977,0.39,117460.0,117450.0,1.83329973]
[1752868735378,0.89,117460.0,117450.0,1.83329973]
[1752868735682,0.39,117460.0,117450.0,1.83329973]
[1752868736179,0.89,117460.0,117450.0,1.58329973]
[1752868736374,1.06629826,117460.0,117450.0,1.58329973]
[1752868736576,1.12428781,117500.0,117450.0,1.58329973]
[1752868736780,0.4208,117610.0,117580.0,0.3608]
[1752868736980,1.74930366,117610.0,117590.0,0.3608]
[1752868737275,2.33930366,117610.0,117600.0,0.3608]
[1752868737479,0.4987,117600.0,117570.0,0.27333283]
[1752868737677,0.97112,117590.0,117560.0,0.97112]
[1752868737882,0.4608,117570.0,117560.0,0.2469917]
[1752868738181,0.77705495,117570.0,117560.0,0.19041926]
[1752868738482,1.63785495,117570.0,117560.0,0.61032]
[1752868738684,1.63785495,117570.0,117560.0,0.26962]
[1752868738884,1.63785495,117570.0,117560.0,0.22702422]
[1752868739082,1.63785495,117570.0,117540.0,0.33104001]
[1752868739283,0.3608,117560.0,117540.0,0.26549001]
[1752868739585,0.3608,117560.0,117550.0,0.26958]
[1752868739586,1.08802137,117560.0,117550.0,0.26958]
[1752868739977,1.58802137,117560.0,117550.0,0.09980808]
[1752868740180,0.1,117540.0,117530.0,0.2952]
[1752868740383,0.3608,117550.0,117530.0,0.61028]
[1752868740583,0.5908,117550.0,117530.0,0.57534]
[1752868740785,1.50739487,117550.0,117530.0,0.74271]
[1752868740983,1.50739487,117550.0,117530.0,0.72417001]
[1752868741184,1.50739487,117550.0,117530.0,0.68158815]
[1752868741376,0.006,117540.0,117530.0,0.63899237]
[1752868741588,0.11859007,117540.0,117530.0,0.55380081]
[1752868741781,0.17859007,117540.0,117530.0,0.53035081]
[1752868742086,0.97859007,117540.0,117530.0,0.48390503]
[1752868742282,0.97859007,117540.0,117530.0,0.44231136]
[1752868742484,0.97859007,117540.0,117530.0,0.92067769]
[1752868742680,0.97859007,117540.0,117530.0,0.96319769]
[1752868742886,0.61911619,117540.0,117530.0,1.30796769]
[1752868743081,0.16911619,117540.0,117530.0,2.58245769]
[1752868743285,0.44411619,117540.0,117530.0,2.58345769]
[1752868743576,0.33252963,117560.0,117530.0,6.09450769]
[1752868743882,0.63252963,117560.0,117550.0,1.18105]
[1752868744087,1.13252963,117560.0,117550.0,1.18105]
[1752868744590,0.98,117560.0,117550.0,1.18105]
[1752868745290,0.98,117560.0,117550.0,2.72368]
[1752868745484,0.65259007,117560.0,117550.0,2.72368]
[1752868745685,0.70259007,117560.0,117550.0,2.72368]
[1752868746084,0.89,117560.0,117550.0,2.72368]
[1752868747289,0.894,117560.0,117550.0,2.72368]
[1752868747490,0.894,117560.0,117550.0,1.18105]
[1752868747686,0.894,117560.0,117550.0,6.42504]
[1752868747987,0.89,117560.0,117550.0,6.42504]
[1752868748190,0.892,117560.0,117550.0,6.32362149]
[1752868748591,0.15252963,117570.0,117560.0,0.29096]
[1752868748785,0.24252963,117570.0,117560.0,3.89567]
[1752868748982,1.02252963,117570.0,117560.0,5.89567]
[1752868749192,1.02252963,117570.0,117560.0,6.06416]
[1752868749487,0.37,117570.0,117560.0,6.06416]
[1752868749784,0.88593996,117570.0,117560.0,6.06416]
[1752868750187,0.49264839,117570.0,117560.0,6.06416]
[1752868750490,0.49264839,117570.0,117560.0,7.2418]
[1752868750691,0.88593996,117570.0,117560.0,7.2418]
[1752868751083,0.88793996,117570.0,117560.0,7.2418]
[1752868751881,0.88693996,117570.0,117560.0,7.2418]
[1752868752291,0.88693996,117570.0,117560.0,7.07742]
[1752868752590,0.88693996,117570.0,117560.0,7.07734]
[1752868753882,0.88693996,117570.0,117560.0,7.68706]
[1752868754193,0.88693996,117570.0,117560.0,7.71024]
[1752868754394,0.88693996,117570.0,117560.0,7.68257079]
[1752868755389,0.96295128,117570.0,117560.0,7.68257079]
[1752868755889,0.96295128,117570.0,117560.0,7.58582498]
[1752868756492,0.88693996,117570.0,117560.0,7.58582498]
[1752868756694,0.88693996,117570.0,117560.0,8.19542498]
[1752868758193,0.94769706,117570.0,117560.0,8.19542498]
[1752868758584,0.94769706,117570.0,117560.0,7.58582498]
[1752868758786,0.94769706,117570.0,117560.0,8.19542498]
[1752868759390,0.88693996,117570.0,117560.0,8.19542498]
[1752868759588,0.56721586,117620.0,117570.0,1.27549]
[1752868759790,0.10641586,117610.0,117600.0,0.63185419]
[1752868759988,0.55641586,117610.0,117600.0,2.24852402]
[1752868760191,0.45,117610.0,117600.0,1.17736]
[1752868760390,0.45,117610.0,117600.0,2.09522571]
[1752868760591,0.95,117610.0,117600.0,1.88239887]
[1752868760785,0.95,117610.0,117600.0,1.32685784]
[1752868760993,0.95,117610.0,117600.0,1.79116074]
[1752868761188,0.95,117610.0,117600.0,1.7485939]
[1752868761395,0.95,117610.0,117600.0,1.15048603]
[1752868761695,0.954,117610.0,117600.0,1.06535235]
[1752868761895,0.954,117610.0,117600.0,1.02278551]
[1752868762091,0.954,117610.0,117600.0,0.88363286]
[1752868762296,0.954,117610.0,117600.0,1.61939602]
[1752868762496,1.06041586,117610.0,117600.0,1.5574608]
[1752868762696,1.06041586,117610.0,117600.0,1.51193959]
[1752868762996,1.06041586,117610.0,117600.0,1.46516275]
[1752868763190,1.06041586,117610.0,117600.0,1.06592833]
[1752868763397,1.06236,117610.0,117600.0,1.98733]
[1752868763694,1.06236,117610.0,117600.0,2.50030419]
[1752868763695,1.21479442,117610.0,117600.0,2.50030419]
[1752868763887,1.21479442,117610.0,117600.0,2.86110419]
[1752868764287,1.27133442,117610.0,117600.0,2.26414]
[1752868764487,1.27133442,117610.0,117600.0,2.12438419]
[1752868764686,1.27133442,117610.0,117600.0,2.11418419]
[1752868765089,1.27133442,117610.0,117600.0,2.21265]
[1752868765491,1.27133442,117610.0,117600.0,2.84450419]
[1752868766097,1.27133442,117610.0,117600.0,2.23306419]
[1752868766297,1.27133442,117610.0,117600.0,2.91769419]
[1752868766794,1.27133442,117610.0,117600.0,2.40472]
[1752868766998,1.27133442,117610.0,117600.0,2.91769419]
[1752868767494,1.27133442,117610.0,117600.0,2.30585419]
[1752868767696,1.27133442,117610.0,117600.0,2.91885419]
[1752868768296,1.63213442,117610.0,117600.0,0.82314295]
[1752868768496,1.4797,117610.0,117600.0,1.41247777]
[1752868768798,1.4797,117610.0,117600.0,1.44978]
[1752868768997,1.4797,117610.0,117600.0,1.86366283]
[1752868769194,1.67786475,117610.0,117600.0,1.14278283]
[1752868769400,1.67786475,117610.0,117600.0,1.25806264]
[1752868769599,1.67786475,117610.0,117600.0,1.21549528]
[1752868769800,1.67786475,117610.0,117600.0,1.61071075]
[1752868770001,1.67786475,117610.0,117600.0,1.56814339]
[1752868770196,1.31706475,117610.0,117600.0,1.0876732]
[1752868770504,1.1189,117610.0,117600.0,1.86688826]
[1752868770904,1.27116813,117610.0,117600.0,1.86237826]
[1752868771197,1.27116813,117610.0,117600.0,1.04982825]
[1752868771403,1.27116813,117610.0,117600.0,1.28413605]
[1752868771602,1.27116813,117610.0,117600.0,1.19899709]
[1752868771797,1.27116813,117610.0,117600.0,1.11385813]
[1752868771798,1.1189,117610.0,117600.0,1.11385813]
[1752868772005,1.1189,117610.0,117600.0,2.58665814]
[1752868772208,1.1189,117610.0,117600.0,1.538]
[1752868772402,1.1189,117610.0,117600.0,1.74799052]
[1752868772597,1.1189,117610.0,117600.0,1.92588335]
[1752868772904,1.1189,117610.0,117600.0,2.53976335]
[1752868773105,1.1189,117610.0,117600.0,2.53136336]
[1752868773404,1.1189,117610.0,117600.0,2.41643229]
[1752868773606,1.1189,117610.0,117600.0,2.41631229]
[1752868773903,1.1189,117610.0,117600.0,2.33117333]
[1752868774204,1.31706475,117610.0,117600.0,2.51317437]
[1752868774403,1.31706475,117610.0,117600.0,1.80997541]
[1752868774604,1.31706475,117610.0,117600.0,2.38080593]
[1752868774803,1.31706475,117610.0,117600.0,1.68226697]
[1752868775005,1.31706475,117610.0,117600.0,1.89221749]
[1752868775205,1.31706475,117610.0,117600.0,1.38419657]
[1752868775406,1.31706475,117610.0,117600.0,1.12352044]
[1752868775607,1.77786475,117610.0,117600.0,0.96328203]
[1752868775808,1.77786475,117610.0,117600.0,0.06749641]
[1752868776003,0.1,117590.0,117580.0,0.42841871]
[1752868776310,1.5525,117590.0,117580.0,0.43366341]
[1752868776502,0.18724,117580.0,117570.0,1.42961775]
[1752868776704,1.9919868,117580.0,117570.0,0.77283033]
[1752868776910,1.64740988,117580.0,117570.0,1.16804682]
[1752868777109,1.64740988,117580.0,117570.0,0.07441765]
[1752868777406,1.96016988,117580.0,117570.0,0.39244162]
[1752868777611,1.80722306,117580.0,117570.0,0.34987528]
[1752868777910,2.04618874,117580.0,117570.0,0.61444]
[1752868778106,0.1,117570.0,117560.0,0.14921551]
[1752868778312,0.15493,117550.0,117540.0,1.14376776]
[1752868778511,1.00573,117550.0,117540.0,2.24657059]
[1752868778703,1.00573,117550.0,117540.0,1.62425059]
[1752868778903,1.59805546,117550.0,117540.0,1.52740135]
[1752868779105,1.59805546,117550.0,117540.0,1.50120135]
[1752868779309,1.59805546,117550.0,117540.0,1.43106239]
[1752868779510,1.70514869,117550.0,117540.0,1.41490239]
[1752868779714,1.70514869,117550.0,117540.0,1.37233605]
[1752868779914,1.70514869,117550.0,117540.0,0.67334971]
[1752868780116,2.06594869,117550.0,117540.0,1.02664979]
[1752868780312,1.95885546,117550.0,117540.0,0.66439]
[1752868780612,0.2429,117540.0,117530.0,0.60944432]
[1752868780913,1.2093213,117540.0,117530.0,0.71801634]
[1752868781315,1.7093213,117540.0,117530.0,0.10289634]
[1752868781507,1.66339057,117540.0,117530.0,0.38614782]
[1752868781707,0.28884,117510.0,117500.0,3.21146028]
[1752868781909,0.74164,117510.0,117500.0,3.87740066]
[1752868782312,1.0544,117510.0,117500.0,7.94028066]
[1752868782519,1.06303862,117510.0,117500.0,7.62863066]
[1752868782717,1.25027862,117510.0,117500.0,5.33374066]
[1752868782912,1.25027862,117510.0,117500.0,2.77190066]
[1752868783114,1.25027862,117510.0,117500.0,2.16234066]
[1752868783318,1.25027862,117510.0,117500.0,2.77786066]
[1752868783514,1.25027862,117510.0,117500.0,2.77847956]
[1752868783819,1.25027862,117510.0,117500.0,2.78047956]
[1752868784117,1.3570079,117510.0,117500.0,2.78047956]
[1752868784318,1.3570079,117510.0,117500.0,2.2669289]
[1752868784519,1.3570079,117510.0,117500.0,2.77851956]
[1752868784720,1.3570079,117510.0,117500.0,2.2619689]
[1752868784919,1.7178079,117510.0,117500.0,2.2619689]
[1752868785120,1.3570079,117510.0,117500.0,1.7723689]
[1752868785315,1.3570079,117510.0,117500.0,2.90179956]
[1752868785521,1.25027862,117510.0,117500.0,2.90179956]
[1752868786218,0.31164,117500.0,117490.0,0.25520565]
[1752868786419,0.78884,117500.0,117490.0,5.44835631]
[1752868786721,0.60672928,117500.0,117490.0,6.72392631]
[1752868786916,1.10672928,117500.0,117490.0,6.36312631]
[1752868787125,1.10672928,117500.0,117490.0,6.72392631]
[1752868787322,1.10672928,117500.0,117490.0,6.08113]
[1752868787627,1.15216928,117500.0,117490.0,6.08181]
[1752868787817,1.15216928,117500.0,117490.0,5.97804066]
[1752868788022,1.15216928,117500.0,117490.0,6.59548066]
[1752868788327,1.15216928,117500.0,117490.0,6.78321066]
[1752868789219,1.04644,117500.0,117490.0,6.7498493]
[1752868789416,1.001,117500.0,117490.0,7.26339996]
[1752868789622,0.92002,117500.0,117490.0,6.23629864]
[1752868789820,1.11926,117500.0,117490.0,6.7498493]
[1752868790123,0.98826,117500.0,117490.0,6.7498493]
[1752868790321,1.1410813,117500.0,117490.0,6.7498493]
[1752868790521,1.1410813,117500.0,117490.0,6.7532093]
[1752868790522,1.2600813,117500.0,117490.0,6.7532093]
[1752868790924,1.1410813,117500.0,117490.0,6.1324093]
[1752868791119,1.10726,117500.0,117490.0,6.1324093]
[1752868791325,1.10726,117500.0,117490.0,6.7310593]
[1752868792325,1.10726,117500.0,117490.0,6.7310993]
[1752868792626,0.96546,117500.0,117490.0,6.7310993]
[1752868793025,0.96546,117500.0,117490.0,6.1095793]
[1752868793229,0.92002,117500.0,117490.0,6.7316193]
[1752868793537,0.92002,117500.0,117490.0,6.61660123]
[1752868793729,0.96546,117500.0,117490.0,6.10305057]
[1752868794234,0.96546,117500.0,117490.0,6.61660123]
[1752868794929,0.68401715,117530.0,117520.0,0.09317]
[1752868795130,0.84514485,117530.0,117520.0,2.40924297]
[1752868795326,0.65714485,117530.0,117520.0,5.12485362]
[1752868795521,1.22590625,117530.0,117520.0,5.12485362]
[1752868796028,1.0725991,117530.0,117520.0,5.37485362]
[1752868796328,0.42613,117570.0,117540.0,1.27549]
[1752868796536,0.76613,117570.0,117560.0,1.78904066]
[1752868796836,1.26613,117570.0,117560.0,1.78904066]
[1752868797029,1.43915466,117570.0,117560.0,3.49024066]
[1752868797228,1.43915466,117570.0,117560.0,2.97669]
[1752868797434,1.43915466,117570.0,117560.0,3.49024066]
[1752868797733,1.43915466,117570.0,117560.0,3.47626796]
[1752868798522,1.44115466,117570.0,117560.0,3.45630687]
[1752868798728,1.44115466,117570.0,117560.0,3.56659621]
[1752868798927,1.44115466,117570.0,117560.0,1.89933]
[1752868799524,0.18724,117560.0,117550.0,0.51355066]
[1752868799729,0.75164,117560.0,117550.0,2.83843066]